fUSD/lending_fUSD_20241203
["ID","MTS","AMOUNT","RATE_DAILY","PERIOD"]
[344046866,1733246389181,-735.68,0.00025273,120]
[344046867,1733246389227,-1791.28,0.00025273,120]
[344046868,1733246389273,-500.0,0.00025273,120]
[344046869,1733246389321,-6083.11,0.00025273,120]
[344046870,1733246389366,-1182.85,0.00025273,120]
[344046871,1733246389421,-5064.19,0.00025273,120]
[344046872,1733246389471,-1372.24,0.00025273,120]
[344046873,1733246389515,-1801.52,0.00025273,120]
[344046874,1733246389560,-7053.22,0.00025273,120]
[344046875,1733246389604,-633.24,0.00025273,120]
[344046876,1733246389647,-1727.09,0.00025273,120]
[344046877,1733246389688,-500.0,0.00025273,60]
[344046878,1733246389729,-1768.81,0.00025273,120]
[344046879,1733246389767,-500.0,0.00025273,120]
[344046880,1733246389807,-1811.25,0.00025273,120]
[344046881,1733246389848,-500.0,0.00025273,120]
[344046882,1733246389896,-6817.49,0.00025273,120]
[344046883,1733246389941,-500.0,0.00025273,120]
[344046884,1733246389984,-615.39465824,0.00025273,120]
[344046885,1733246390027,-4315.08,0.00025273,120]
[344046886,1733246390072,-500.0,0.00025273,120]
[344046887,1733246390114,-500.0,0.00025273,120]
[344046888,1733246390162,-794.0,0.00025273,120]
[344046889,1733246390207,-500.0,0.00025273,120]
[344046890,1733246390249,-500.0,0.00025273,120]
[344046891,1733246390294,-1834.56,0.00025273,120]
[344046892,1733246390337,-2163.69,0.00025273,120]
[344046893,1733246390383,-523.36,0.00025273,120]
[344046894,1733246390424,-1954.17,0.00025273,120]
[344046895,1733246390465,-500.0,0.00025273,120]
[344046896,1733246390505,-1904.97,0.00025273,120]
[344046897,1733246390546,-1431.07,0.00025273,120]
[344046898,1733246390588,-1369.29,0.00025273,120]
[344046899,1733246390628,-500.0,0.00025273,120]
[344046900,1733246390673,-1476.53,0.00025273,120]
[344046901,1733246390713,-713.61,0.00025273,120]
[344046902,1733246390754,-787.68,0.00025273,120]
[344046903,1733246390794,-500.0,0.00025273,120]
[344046904,1733246390835,-1918.45,0.00025273,120]
[344046905,1733246390874,-500.0,0.00025273,120]
[344046906,1733246390915,-500.0,0.00025273,120]
[344046907,1733246390955,-1392.84,0.00025273,120]
[344046908,1733246390997,-500.0,0.00025273,120]
[344046909,1733246391036,-3449.59,0.00025273,120]
[344046910,1733246391077,-500.0,0.00025273,120]
[344046911,1733246391118,-1120.44,0.00025273,120]
[344046912,1733246391157,-500.0,0.00025273,120]
[344046913,1733246391473,-1900.12,0.00025273,120]
[344046914,1733246391524,-4022.63,0.00025273,120]
[344046915,1733246391569,-500.0,0.00025273,120]
[344046916,1733246391618,-2474.06,0.00025273,120]
[344046917,1733246391666,-602.36,0.00025273,120]
[344046918,1733246391711,-2205.08,0.00025273,120]
[344046919,1733246391755,-978.37,0.00025273,120]
[344046920,1733246391799,-754.6,0.00025273,120]
[344046921,1733246391841,-550.78,0.00025273,120]
[344046922,1733246391884,-1095.87,0.00025273,120]
[344046923,1733246391930,-500.0,0.00025273,120]
[344046924,1733246391973,-727.03,0.00025273,120]
[344046925,1733246392016,-613.46,0.00025273,120]
[344046926,1733246392060,-500.0,0.00025273,120]
[344046927,1733246392105,-1417.04,0.00025273,120]
[344046928,1733246392148,-500.0,0.00025273,120]
[344046929,1733246392192,-1324.03,0.00025273,120]
[344046930,1733246392236,-500.0,0.00025273,120]
[344046931,1733246392282,-1886.65,0.00025273,120]
[344046932,1733246392332,-782.65,0.00025273,120]
[344046933,1733246392379,-500.0,0.00025273,120]
[344046934,1733246392423,-500.0,0.00025273,120]
[344046935,1733246392466,-1695.88,0.00025273,120]
[344046936,1733246392513,-500.0,0.00025273,120]
[344046937,1733246392559,-2488.69,0.00025273,120]
[344046938,1733246392604,-500.0,0.00025273,120]
[344046939,1733246392646,-3286.92,0.00025273,30]
[344046940,1733246392691,-588.15,0.00025273,120]
[344046941,1733246392735,-500.0,0.00025273,120]
[344046942,1733246392780,-1038.17,0.00025273,120]
[344046943,1733246392823,-1366.96,0.00025273,120]
[344046944,1733246392868,-6048.91,0.00025273,120]
[344046945,1733246392910,-1476.51,0.00025273,120]
[344046946,1733246392955,-500.0,0.00025273,120]
[344046947,1733246392996,-817.84,0.00025273,120]
[344046948,1733246393038,-500.0,0.00025273,120]
[344046949,1733246393080,-1694.87,0.00025273,120]
[344046950,1733246393124,-500.0,0.00025273,120]
[344046951,1733246393170,-1769.97,0.00025273,120]
[344046952,1733246393215,-500.0,0.00025273,120]
[344046953,1733246393258,-887.92,0.00025273,120]
[344046954,1733246393305,-500.0,0.00025273,120]
[344046955,1733246393350,-500.0,0.00025273,120]
[344046956,1733246393395,-500.0,0.00025273,120]
[344046957,1733246393444,-500.0,0.00025273,120]
[344046958,1733246393490,-500.0,0.00025273,120]
[344046959,1733246393537,-500.0,0.00025273,120]
[344046960,1733246393582,-1078.5,0.00025273,120]
[344046961,1733246393626,-500.0,0.00025273,120]
[344046962,1733246393672,-2376.67,0.00025273,120]
[344046963,1733246393718,-2962.5,0.00025273,120]
[344046964,1733246393763,-3029.75,0.00025273,120]
[344046965,1733246393807,-611.66,0.00025273,120]
[344046966,1733246393852,-500.0,0.00025273,120]
[344046967,1733246393900,-531.75,0.00025273,120]
[344046968,1733246393952,-500.0,0.00025273,120]
[344046969,1733246393998,-8037.32,0.00025273,120]
[344046970,1733246394042,-500.0,0.00025273,120]
[344046971,1733246394084,-500.0,0.00025273,120]
[344046972,1733246394129,-500.0,0.00025273,120]
[344046973,1733246394175,-1556.61,0.00025273,120]
[344046974,1733246394220,-521.33,0.00025273,120]
[344046975,1733246394266,-10547.32,0.00025273,120]
[344046976,1733246394310,-500.0,0.00025273,120]
[344046977,1733246394355,-1570.3,0.00025273,120]
[344046978,1733246394399,-2242.92,0.00025273,120]
[344046979,1733246394446,-645.19,0.00025273,120]
[344046980,1733246394491,-537.58,0.00025273,120]
[344046981,1733246394535,-748.2,0.00025273,120]
[344046982,1733246394579,-1019.59,0.00025273,120]
[344046983,1733246394622,-500.0,0.00025273,120]
[344046984,1733246394665,-500.0,0.00025273,120]
[344046985,1733246394709,-1588.86,0.00025273,120]
[344046986,1733246394752,-532.62,0.00025273,120]
[344046987,1733246394796,-500.0,0.00025273,120]
[344046988,1733246394839,-2040.41,0.00025273,120]
[344046989,1733246394884,-500.0,0.00025273,120]
[344046990,1733246394934,-2779.73,0.00025273,120]
[344046991,1733246394985,-3868.89,0.00025273,120]
[344046992,1733246395032,-1070.97,0.00025273,120]
[344046993,1733246395081,-598.80961628,0.00025273,120]
[344046994,1733246395125,-500.0,0.00025273,120]
[344046995,1733246395172,-500.0,0.00025273,120]
[344046996,1733246395216,-500.0,0.00025273,120]
[344046997,1733246395260,-500.0,0.00025273,120]
[344046998,1733246395307,-500.0,0.00025273,120]
[344046999,1733246395350,-977.08,0.00025273,30]
[344047000,1733246395393,-1984.15,0.00025273,120]
[344047001,1733246395433,-500.0,0.00025273,120]
[344047002,1733246395476,-1226.71,0.00025273,120]
[344047003,1733246395517,-1338.25,0.00025273,120]
[344047004,1733246395561,-2300.5,0.00025273,120]
[344047005,1733246395602,-500.0,0.00025273,120]
[344047006,1733246395646,-761.67,0.00025273,120]
[344047007,1733246395691,-1413.58,0.00025273,120]
[344047008,1733246395988,-1756.58,0.00025273,120]
[344047009,1733246396032,-500.0,0.00025273,120]
[344047010,1733246396075,-1092.7,0.00025273,120]
[344047011,1733246396117,-500.0,0.00025273,120]
[344047012,1733246396162,-1852.13,0.00025273,120]
[344047013,1733246396208,-618.36,0.00025273,120]
[344047014,1733246396252,-1123.68,0.00025273,120]
[344047015,1733246396294,-500.0,0.00025273,120]
[344047016,1733246396336,-2511.08,0.00025273,120]
[344047017,1733246396381,-14999.25,0.00025273,120]
[344047018,1733246396426,-500.0,0.00025273,120]
[344047019,1733246396470,-500.0,0.00025273,120]
[344047020,1733246396515,-500.0,0.00025273,120]
[344047021,1733246396562,-538.24097973,0.00025273,120]
[344047022,1733246396607,-1503.1,0.00025273,120]
[344047023,1733246396651,-955.58,0.00025273,120]
[344047024,1733246396699,-500.0,0.00025273,120]
[344047025,1733246396742,-500.0,0.00025273,120]
[344047026,1733246396784,-959.56,0.00025273,120]
[344047027,1733246396825,-1455.85,0.00025273,120]
[344047028,1733246396870,-1176.59,0.00025273,120]
[344047029,1733246396912,-500.0,0.00025273,120]
[344047030,1733246396954,-500.0,0.00025273,120]
[344047031,1733246396994,-500.0,0.00025273,120]
[344047032,1733246397035,-1909.83,0.00025273,120]
[344047033,1733246397074,-500.0,0.00025273,120]
[344047034,1733246397115,-2828.4,0.00025273,120]
[344047035,1733246397156,-3137.48,0.00025273,120]
[344047036,1733246397199,-946.81,0.00025273,120]
[344047037,1733246397240,-500.0,0.00025273,120]
[344047038,1733246397282,-576.06,0.00025273,120]
[344047039,1733246397322,-500.0,0.00025273,120]
[344047040,1733246397360,-500.0,0.00025273,120]
[344047041,1733246397399,-3843.72,0.00025273,120]
[344047042,1733246397440,-769.01,0.00025273,120]
[344047043,1733246397478,-500.0,0.00025273,120]
[344047044,1733246397517,-500.0,0.00025273,120]
[344047045,1733246397558,-500.0,0.00025273,120]
[344047046,1733246397600,-676.76,0.00025273,120]
[344047047,1733246397641,-500.0,0.00025273,120]
[344047048,1733246397684,-1451.86,0.00025273,120]
[344047049,1733246397729,-695.97,0.00025273,120]
[344047050,1733246397771,-500.0,0.00025273,120]
[344047051,1733246397813,-2173.76,0.00025273,120]
[344047052,1733246397856,-1053.62,0.00025273,120]
[344047053,1733246397903,-2487.98,0.00025273,120]
[344047054,1733246397951,-833.33,0.00025273,120]
[344047055,1733246397995,-500.0,0.00025273,120]
[344047056,1733246398039,-2316.5,0.00025273,120]
[344047057,1733246398082,-4866.38,0.00025273,120]
[344047058,1733246398126,-947.83,0.00025273,120]
[344047059,1733246398171,-3087.07,0.00025273,120]
[344047060,1733246398217,-219.86420487,0.00025273,120]
[344047061,1733246398263,-2569.57,0.00025273,120]
[344047062,1733246398307,-1750.75,0.00025273,120]
[344047063,1733246398352,-2123.31,0.00025273,120]
[344047064,1733246398396,-500.0,0.00025273,120]
[344047065,1733246398442,-5678.95,0.00025273,120]
[344047066,1733246398490,-890.94,0.00025273,120]
[344047067,1733246398536,-6210.96,0.00025273,120]
[344047068,1733246398578,-1888.85,0.00025273,120]
[344047069,1733246398618,-225.58755812,0.00025273,120]
[344047070,1733246398658,-2277.65,0.00025273,120]
[344047071,1733246398699,-1177.75,0.00025273,120]
[344047072,1733246398740,-150.0,0.00025273,120]
[344047073,1733246398780,-500.0,0.00025273,120]
[344047074,1733246398818,-500.0,0.00025273,120]
[344047075,1733246398856,-500.0,0.00025273,120]
[344047076,1733246398897,-2388.35,0.00025273,120]
[344047077,1733246398938,-1081.68,0.00025273,120]
[344047078,1733246398979,-500.0,0.00025273,120]
[344047079,1733246399022,-2089.47,0.00025273,120]
[344047080,1733246399066,-500.0,0.00025273,120]
[344047081,1733246399110,-500.0,0.00025273,120]
[344047082,1733246399153,-2195.21,0.00025273,120]
[344047083,1733246399197,-395.6267283,0.00025273,120]
[344047084,1733246399238,-1320.17,0.00025273,120]
[344047085,1733246399279,-649.39,0.00025273,120]
[344047086,1733246399321,-11673.27,0.00025273,120]
[344047087,1733246399361,-1539.82,0.00025273,120]
[344047088,1733246399402,-500.0,0.00025273,120]
[344047089,1733246399447,-500.0,0.00025273,120]
[344047090,1733246399491,-2229.1,0.00025273,120]
[344047091,1733246399533,-500.0,0.00025273,120]
[344047092,1733246399575,-500.0,0.00025273,120]
[344047093,1733246399616,-1626.37,0.00025273,120]
[344047094,1733246399658,-564.03,0.00025273,120]
[344047095,1733246399701,-892.42,0.00025273,120]
[344047096,1733246399741,-1107.9,0.00025273,120]
[344047097,1733246399780,-3238.66,0.00025273,120]
[344047098,1733246399820,-500.0,0.00025273,120]
[344047099,1733246399860,-1416.32,0.00025273,120]
[344047100,1733246399903,-500.0,0.00025273,120]
[344047101,1733246399945,-771.01,0.00025273,120]
[344047102,1733246400233,-500.0,0.00025273,120]
[344047103,1733246400279,-500.0,0.00025273,120]
[344047104,1733246400326,-794.36,0.00025273,120]
[344047105,1733246400369,-3114.58,0.00025273,120]
[344047106,1733246400415,-1552.96,0.00025273,120]
[344047107,1733246400462,-3034.79,0.00025273,120]
[344047108,1733246400508,-1604.81,0.00025273,120]
[344047109,1733246400555,-9386.34,0.00025273,120]
[344047110,1733246400602,-2511.29,0.00025273,120]
[344047111,1733246400651,-1228.87,0.00025273,120]
[344047112,1733246400700,-500.0,0.00025273,120]
[344047113,1733246400748,-1438.16,0.00025273,120]
[344047114,1733246400796,-504.91,0.00025273,120]
[344047115,1733246400843,-500.0,0.00025273,120]
[344047116,1733246400893,-1228.49,0.00025273,120]
[344047117,1733246400944,-987.01,0.00025273,120]
[344047118,1733246400991,-333.16653142,0.00025273,120]
[344047119,1733246401037,-500.0,0.00025273,120]
[344047120,1733246401084,-1869.76,0.00025273,120]
[344047121,1733246401130,-575.2,0.00025273,120]
[344047122,1733246401177,-500.0,0.00025273,120]
[344047123,1733246401222,-1707.41,0.00025273,120]
[344047124,1733246401267,-500.0,0.000254,120]
[344047125,1733246401316,-339.59,0.000254,31]
[344047126,1733246401365,-339.59,0.000254,31]
[344047127,1733246401415,-339.59,0.000254,31]
[344047128,1733246401468,-339.59,0.000254,31]
[344047129,1733246401517,-339.59,0.000254,31]
[344047130,1733246401566,-339.59,0.000254,31]
[344047131,1733246401615,-339.59,0.000254,31]
[344047132,1733246401667,-339.59,0.000254,31]
[344047133,1733246401720,-339.59,0.000254,31]
[344047134,1733246401775,-339.59,0.000254,31]
[344047135,1733246401825,-339.59,0.000254,31]
[344047136,1733246401877,-339.59,0.000254,31]
[344047137,1733246401930,-339.59,0.000254,31]
[344047138,1733246401983,-339.59,0.000254,31]
[344047139,1733246402032,-339.59,0.000254,31]
[344047140,1733246402081,-339.59,0.000254,31]
[344047141,1733246402128,-500.0,0.00025436,120]
[344047142,1733246402178,-515.5182057,0.00025547,120]
[344047143,1733246402223,-500.0,0.00025547,120]
[344047144,1733246402266,-500.0,0.00025547,120]
[344047145,1733246402309,-500.0,0.00025547,120]
[344047146,1733246402352,-500.0,0.00025547,120]
[344047147,1733246402395,-500.0,0.00025547,120]
[344047148,1733246402437,-427.01905578,0.00025547,120]
[344047149,1733246402481,-500.0,0.00025547,120]
[344047150,1733246402523,-500.0,0.00025547,120]
[344047151,1733246402566,-500.0,0.00025547,120]
[344047152,1733246402610,-500.0,0.00025547,120]
[344047153,1733246402652,-500.0,0.00025547,120]
[344047154,1733246402696,-516.00071183,0.00025547,120]
[344047155,1733246402738,-500.0,0.00025547,120]
[344047156,1733246402783,-500.0,0.00025547,120]
[344047157,1733246402827,-500.0,0.00025547,120]
[344047158,1733246402871,-500.0,0.00025547,120]
[344047159,1733246402916,-500.0,0.00025547,120]
[344047160,1733246402963,-500.0,0.00025547,120]
[344047161,1733246403005,-191.75440824,0.00025547,120]
[344047162,1733246403069,-186.76428233,0.00025547,120]
[344047163,1733246403118,-500.0,0.00025547,120]
[344047164,1733246403167,-500.0,0.00025547,120]
[344047165,1733246403225,-500.0,0.00025547,120]
[344047166,1733246403276,-500.0,0.00025547,120]
[344047167,1733246403330,-500.0,0.00025547,120]
[344047168,1733246403382,-500.0,0.00025547,120]
[344047169,1733246403438,-500.0,0.00025547,120]
[344047170,1733246403494,-500.0,0.00025547,120]
[344047171,1733246403547,-500.0,0.00025547,120]
[344047172,1733246403600,-500.0,0.00025547,120]
[344047173,1733246403651,-500.0,0.00025547,120]
[344047174,1733246403700,-500.0,0.00025547,120]
[344047175,1733246403749,-500.0,0.00025547,120]
[344047176,1733246403799,-500.0,0.00025547,120]
[344047177,1733246403848,-1703.96,0.00025547,120]
[344047178,1733246403909,-500.0,0.00025547,120]
[344047179,1733246403961,-500.0,0.00025547,30]
[344047180,1733246404012,-568.95,0.00025547,120]
[344047181,1733246404061,-500.0,0.00025547,120]
[344047182,1733246404111,-500.0,0.00025547,120]
[344047183,1733246404165,-500.0,0.00025547,120]
[344047184,1733246404222,-500.0,0.00025547,120]
[344047185,1733246404275,-1995.55,0.00025547,120]
[344047186,1733246404326,-500.0,0.00025547,120]
[344047187,1733246404379,-500.0,0.00025547,120]
[344047188,1733246404435,-500.0,0.00025547,120]
[344047189,1733246404491,-627.87,0.00025547,120]
[344047190,1733246404544,-500.0,0.00025547,120]
[344047191,1733246404594,-560.09,0.00025547,120]
[344047192,1733246404642,-500.0,0.00025547,120]
[344047193,1733246404690,-500.0,0.00025547,120]
[344047194,1733246404739,-500.0,0.00025547,120]
[344047195,1733246404786,-500.0,0.00025547,120]
[344047196,1733246404835,-500.0,0.00025547,120]
[344047197,1733246405195,-1240.62,0.00025547,120]
[344047198,1733246405246,-500.0,0.00025547,120]
[344047199,1733246405294,-500.0,0.00025547,120]
[344047200,1733246405343,-1155.99,0.00025547,120]
[344047201,1733246405393,-500.0,0.00025547,120]
[344047202,1733246405441,-500.0,0.00025547,120]
[344047203,1733246405489,-500.0,0.00025547,120]
[344047204,1733246405536,-500.0,0.00025547,120]
[344047205,1733246405586,-500.0,0.00025547,120]
[344047206,1733246405633,-500.0,0.00025547,120]
[344047207,1733246405681,-768.58,0.00025547,120]
[344047208,1733246405728,-500.0,0.00025547,120]
[344047209,1733246405777,-699.35,0.00025547,120]
[344047210,1733246405824,-500.0,0.00025547,120]
[344047211,1733246405871,-500.0,0.00025547,120]
[344047212,1733246405919,-500.0,0.00025547,120]
[344047213,1733246405978,-500.0,0.00025547,120]
[344047214,1733246406026,-500.0,0.00025547,120]
[344047215,1733246406076,-500.0,0.00025547,120]
[344047216,1733246406132,-1159.6,0.00025547,120]
[344047217,1733246406185,-500.0,0.00025547,120]
[344047218,1733246406233,-500.0,0.00025547,120]
[344047219,1733246406283,-500.0,0.00025547,120]
[344047220,1733246406333,-1063.83,0.00025547,120]
[344047221,1733246406384,-500.0,0.00025547,120]
[344047222,1733246406434,-500.0,0.00025547,120]
[344047223,1733246406483,-500.0,0.00025547,120]
[344047224,1733246406534,-1005.73,0.00025547,120]
[344047225,1733246406582,-500.0,0.00025547,120]
[344047226,1733246406632,-834.76,0.00025547,120]
[344047227,1733246406687,-500.0,0.00025547,120]
[344047228,1733246406735,-500.0,0.00025547,120]
[344047229,1733246406783,-513.21392199,0.00025547,120]
[344047230,1733246406831,-940.98,0.00025547,120]
[344047231,1733246406880,-500.0,0.00025547,120]
[344047232,1733246406929,-500.0,0.00025547,120]
[344047233,1733246406977,-842.25,0.00025547,120]
[344047234,1733246407024,-684.34,0.00025547,120]
[344047235,1733246407071,-500.0,0.00025547,120]
[344047236,1733246407123,-1040.24,0.00025547,120]
[344047237,1733246407171,-500.0,0.00025547,120]
[344047238,1733246407223,-1156.41,0.00025547,120]
[344047239,1733246407272,-500.0,0.00025547,120]
[344047240,1733246407324,-500.0,0.00025547,120]
[344047241,1733246407373,-500.0,0.00025547,120]
[344047242,1733246407426,-1005.6,0.00025547,120]
[344047243,1733246407477,-500.0,0.00025547,120]
[344047244,1733246407526,-500.0,0.00025547,120]
[344047245,1733246407576,-500.0,0.00025547,120]
[344047246,1733246407627,-1971.36,0.00025547,120]
[344047247,1733246407677,-673.67,0.00025547,120]
[344047248,1733246407726,-500.0,0.00025547,120]
[344047249,1733246407773,-500.0,0.00025547,120]
[344047250,1733246407822,-500.0,0.00025547,120]
[344047251,1733246407873,-500.0,0.00025547,120]
[344047252,1733246407924,-434.85119817,0.00025547,120]
[344047253,1733246407977,-500.0,0.00025547,120]
[344047254,1733246408026,-2004.58,0.00025547,120]
[344047255,1733246408074,-772.87,0.00025547,120]
[344047256,1733246408120,-500.0,0.00025547,120]
[344047257,1733246408173,-500.0,0.00025547,120]
[344047258,1733246408227,-500.0,0.00025547,120]
[344047259,1733246408275,-1051.56,0.00025547,120]
[344047260,1733246408326,-664.51,0.00025547,120]
[344047261,1733246408376,-500.0,0.00025547,120]
[344047262,1733246408427,-500.0,0.00025547,120]
[344047263,1733246408478,-1227.86,0.00025547,120]
[344047264,1733246408526,-500.0,0.00025547,120]
[344047265,1733246408574,-1257.21,0.00025547,120]
[344047266,1733246408622,-500.0,0.00025547,120]
[344047267,1733246408667,-500.0,0.00025547,120]
[344047268,1733246408717,-500.0,0.00025547,120]
[344047269,1733246408765,-500.0,0.00025547,120]
[344047270,1733246408813,-625.67,0.00025547,120]
[344047271,1733246408862,-500.0,0.00025547,120]
[344047272,1733246408911,-500.0,0.00025547,120]
[344047273,1733246408962,-500.0,0.00025547,120]
[344047274,1733246409010,-500.0,0.00025547,120]
[344047275,1733246409058,-500.0,0.00025547,120]
[344047276,1733246409108,-500.0,0.00025547,120]
[344047277,1733246409158,-510.17057144,0.00025547,120]
[344047278,1733246409212,-500.0,0.00025547,120]
[344047279,1733246409263,-1139.98,0.00025547,120]
[344047280,1733246409315,-500.0,0.00025547,120]
[344047281,1733246409366,-500.0,0.00025547,120]
[344047282,1733246409417,-500.0,0.00025547,120]
[344047283,1733246409467,-603.4,0.00025547,120]
[344047284,1733246409517,-1100.51,0.00025547,120]
[344047285,1733246409563,-620.02,0.00025547,120]
[344047286,1733246409611,-500.0,0.00025547,120]
[344047287,1733246409659,-500.0,0.00025547,120]
[344047288,1733246409709,-500.0,0.00025547,120]
[344047289,1733246409754,-822.2,0.00025547,120]
[344047290,1733246409799,-500.0,0.00025547,120]
[344047291,1733246410214,-164.70958719,0.00025547,120]
[344047292,1733246410261,-500.0,0.00025547,120]
[344047293,1733246410308,-1591.69,0.00025547,120]
[344047294,1733246410354,-500.0,0.00025547,120]
[344047295,1733246410398,-500.0,0.00025547,120]
[344047296,1733246410443,-736.69,0.00025547,120]
[344047297,1733246410488,-502.14,0.00025547,120]
[344047298,1733246410535,-500.0,0.00025547,120]
[344047299,1733246410580,-401.1138121,0.00025547,120]
[344047300,1733246410626,-1198.01,0.00025547,120]
[344047301,1733246410669,-500.0,0.00025547,120]
[344047302,1733246410718,-1076.68,0.00025547,120]
[344047303,1733246410765,-500.0,0.00025547,120]
[344047304,1733246410812,-500.0,0.00025547,120]
[344047305,1733246410859,-500.0,0.00025547,120]
[344047306,1733246410909,-1389.06,0.00025547,120]
[344047307,1733246410961,-1454.71,0.00025547,120]
[344047308,1733246411006,-2172.48,0.00025547,120]
[344047309,1733246411060,-597.38,0.00025547,120]
[344047310,1733246411108,-1396.93,0.00025547,120]
[344047311,1733246411155,-653.9,0.00025547,120]
[344047312,1733246411202,-967.04,0.00025547,120]
[344047313,1733246411250,-500.0,0.00025547,120]
[344047314,1733246411298,-1074.12,0.00025547,90]
[344047315,1733246411345,-713.88,0.00025547,120]
[344047316,1733246411393,-202.91474637,0.00025547,30]
[344047317,1733246411444,-500.0,0.00025547,120]
[344047318,1733246411492,-694.62,0.00025547,120]
[344047319,1733246411539,-734.36,0.00025547,120]
[344047320,1733246411586,-500.0,0.00025547,120]
[344047321,1733246411632,-1026.67,0.00025547,120]
[344047322,1733246411680,-574.63,0.00025547,120]
[344047323,1733246411727,-500.0,0.00025547,120]
[344047324,1733246411774,-1032.38,0.00025547,120]
[344047325,1733246411821,-1370.44,0.00025547,120]
[344047326,1733246411866,-500.0,0.00025547,120]
[344047327,1733246411913,-500.0,0.00025547,120]
[344047328,1733246411958,-500.0,0.00025547,60]
[344047329,1733246412002,-500.0,0.00025547,120]
[344047330,1733246412045,-5000.0,0.00025547,120]
[344047331,1733246412090,-878.56,0.00025547,120]
[344047332,1733246412137,-500.0,0.00025547,120]
[344047333,1733246412187,-500.0,0.00025547,120]
[344047334,1733246412232,-500.0,0.00025547,120]
[344047335,1733246412278,-2000.1,0.00025547,120]
[344047336,1733246412323,-1391.24,0.00025547,120]
[344047337,1733246412367,-1091.32,0.00025547,120]
[344047338,1733246412411,-500.0,0.00025547,120]
[344047339,1733246412459,-500.0,0.00025547,120]
[344047340,1733246412502,-500.0,0.00025547,120]
[344047341,1733246412547,-861.77,0.00025547,120]
[344047342,1733246412593,-500.0,0.00025547,120]
[344047343,1733246412638,-500.0,0.00025547,120]
[344047344,1733246412684,-1022.05,0.00025547,120]
[344047345,1733246412729,-500.0,0.00025547,120]
[344047346,1733246412774,-529.95,0.00025547,120]
[344047347,1733246412818,-1890.66,0.00025547,120]
[344047348,1733246412866,-1145.75,0.00025547,120]
[344047349,1733246412911,-1489.2,0.00025547,120]
[344047350,1733246412957,-500.0,0.00025547,120]
[344047351,1733246413002,-500.0,0.00025547,120]
[344047352,1733246413048,-500.0,0.00025547,120]
[344047353,1733246413094,-500.0,0.00025547,120]
[344047354,1733246413140,-500.0,0.00025547,120]
[344047355,1733246413189,-1081.55,0.00025547,120]
[344047356,1733246413235,-500.0,0.00025547,120]
[344047357,1733246413281,-1143.39,0.00025547,120]
[344047358,1733246413328,-500.0,0.00025547,120]
[344047359,1733246413374,-500.0,0.00025547,120]
[344047360,1733246413423,-500.0,0.00025547,120]
[344047361,1733246413480,-600.27687788,0.00025547,120]
[344047362,1733246413528,-550.30321971,0.00025547,120]
[344047363,1733246413577,-500.0,0.00025547,120]
[344047364,1733246413625,-500.0,0.00025547,120]
[344047365,1733246413670,-500.0,0.00025547,120]